[Event "Titled Tuesday Blitz January 31 Early 2023"]
[White "Martic, Ivan"]
[Black "Estrada Nieto, Julian"]
[WhiteFideId "929301"]
[BlackFideId "5101018"]
[WhiteElo "2301"]
[BlackElo "2215"]
[Result "0-1"]
[Round "06"]
[TimeControl "180+2"]
[Date "2023.01.31"]
[WhiteClock "0:00:30"]
[BlackClock "0:01:19"]

1. e4 {[%clk 0:03:00]}  e5 {[%clk 0:02:51]} 2. Nf3 {[%clk 0:02:57]}  Nc6 {[%clk 0:02:51]} 3. Nc3 {[%clk 0:02:56]}  Nf6 {[%clk 0:02:51]} 4. Bb5 {[%clk 0:02:54]}  Bb4 {[%clk 0:02:50]} 5. O-O {[%clk 0:02:53]}  O-O {[%clk 0:02:49]} 6. d3 {[%clk 0:02:54]}  Bxc3 {[%clk 0:02:49]} 7. bxc3 {[%clk 0:02:54]}  d6 {[%clk 0:02:49]} 8. Bg5 {[%clk 0:02:51]}  Qe7 {[%clk 0:02:48]} 9. Re1 {[%clk 0:02:36]}  Nd8 {[%clk 0:02:48]} 10. h3 {[%clk 0:02:33]}  Ne6 {[%clk 0:02:48]} 11. Bh4 {[%clk 0:02:24]}  c6 {[%clk 0:02:45]} 12. Bc4 {[%clk 0:02:20]}  Nf4 {[%clk 0:02:45]} 13. d4 {[%clk 0:02:18]}  h6 {[%clk 0:02:37]} 14. Bf1 {[%clk 0:01:55]}  Rd8 {[%clk 0:02:31]} 15. Qd2 {[%clk 0:01:38]}  g5 {[%clk 0:02:27]} 16. Nxg5 {[%clk 0:01:36]}  hxg5 {[%clk 0:02:26]} 17. Bxg5 {[%clk 0:01:37]}  Ng6 {[%clk 0:02:14]} 18. Re3 {[%clk 0:01:29]}  Qe6 {[%clk 0:02:06]} 19. Rg3 {[%clk 0:01:20]}  Bd7 {[%clk 0:01:51]} 20. Bd3 {[%clk 0:01:09]}  Kg7 {[%clk 0:01:45]} 21. Bh6+ {[%clk 0:01:03]}  Kh7 {[%clk 0:01:44]} 22. Rf1 {[%clk 0:00:57]}  Nh5 {[%clk 0:01:43]} 23. Rg4 {[%clk 0:00:48]}  Rg8 {[%clk 0:01:35]} 24. Qg5 {[%clk 0:00:42]}  Ngf4 {[%clk 0:01:30]} 25. Qh4 {[%clk 0:00:36]}  Rxg4 {[%clk 0:01:27]} 26. hxg4 {[%clk 0:00:37]}  Qxg4 {[%clk 0:01:27]} 27. Qxg4 {[%clk 0:00:34]}  Bxg4 {[%clk 0:01:27]} 28. Bxf4 {[%clk 0:00:31]}  Nxf4 {[%clk 0:01:25]} 29. f3 {[%clk 0:00:32]}  Be6 {[%clk 0:01:24]} 30. Rb1 {[%clk 0:00:30]}  b6 {[%clk 0:01:19]} 0-1


[Site "https://www.chess.com"]

[Event "Titled Tuesday Blitz January 31 Early 2023"]
[White "Tomaszewski, Kacper"]
[Black "Sai Han Thiha"]
[WhiteFideId "1127373"]
[BlackFideId "13012290"]
[WhiteElo "2313"]
[BlackElo "2070"]
[Result "1-0"]
[Round "06"]
[TimeControl "180+2"]
[Date "2023.01.31"]
[WhiteClock "0:00:17"]
[BlackClock "0:00:04"]

1. b3 {[%clk 0:03:00]}  Nf6 {[%clk 0:02:59]} 2. Bb2 {[%clk 0:03:00]}  d5 {[%clk 0:03:00]} 3. e3 {[%clk 0:03:00]}  Bf5 {[%clk 0:03:01]} 4. Nf3 {[%clk 0:02:59]}  e6 {[%clk 0:03:01]} 5. d3 {[%clk 0:02:59]}  Be7 {[%clk 0:03:01]} 6. Nbd2 {[%clk 0:02:59]}  O-O {[%clk 0:03:01]} 7. Be2 {[%clk 0:03:00]}  h6 {[%clk 0:03:01]} 8. O-O {[%clk 0:03:00]}  c5 {[%clk 0:03:02]} 9. c4 {[%clk 0:03:01]}  Nc6 {[%clk 0:02:59]} 10. Rc1 {[%clk 0:03:00]}  d4 {[%clk 0:02:24]} 11. e4 {[%clk 0:02:56]}  Bg4 {[%clk 0:02:24]} 12. Ne1 {[%clk 0:02:52]}  Bxe2 {[%clk 0:02:21]} 13. Qxe2 {[%clk 0:02:53]}  e5 {[%clk 0:02:20]} 14. g3 {[%clk 0:02:48]}  Qd7 {[%clk 0:02:03]} 15. Ng2 {[%clk 0:02:48]}  a6 {[%clk 0:01:52]} 16. Rce1 {[%clk 0:02:45]}  b5 {[%clk 0:01:52]} 17. Bc1 {[%clk 0:02:42]}  Rab8 {[%clk 0:01:49]} 18. f4 {[%clk 0:02:42]}  Qg4 {[%clk 0:01:37]} 19. Nf3 {[%clk 0:02:33]}  bxc4 {[%clk 0:01:37]} 20. bxc4 {[%clk 0:02:31]}  Bd6 {[%clk 0:01:33]} 21. f5 {[%clk 0:02:25]}  Rb1 {[%clk 0:01:20]} 22. Ngh4 {[%clk 0:02:09]}  Rfb8 {[%clk 0:01:18]} 23. Kg2 {[%clk 0:02:01]}  Qh5 {[%clk 0:01:00]} 24. h3 {[%clk 0:01:54]}  Be7 {[%clk 0:00:58]} 25. Qc2 {[%clk 0:01:45]}  Ra1 {[%clk 0:00:50]} 26. Bd2 {[%clk 0:01:32]}  Rxe1 {[%clk 0:00:40]} 27. Rxe1 {[%clk 0:01:29]}  g5 {[%clk 0:00:20]} 28. fxg6 {[%clk 0:01:24]}  fxg6 {[%clk 0:00:20]} 29. Rb1 {[%clk 0:01:23]}  Rxb1 {[%clk 0:00:06]} 30. Qxb1 {[%clk 0:01:24]}  Nd8 {[%clk 0:00:03]} 31. Qb6 {[%clk 0:01:15]}  Kf8 {[%clk 0:00:02]} 32. Qxa6 {[%clk 0:01:12]}  g5 {[%clk 0:00:02]} 33. Nf5 {[%clk 0:01:03]}  g4 {[%clk 0:00:03]} 34. hxg4 {[%clk 0:01:03]}  Nxg4 {[%clk 0:00:03]} 35. Bxh6+ {[%clk 0:00:59]}  Nxh6 {[%clk 0:00:03]} 36. Qxh6+ {[%clk 0:00:58]}  Qxh6 {[%clk 0:00:03]} 37. Nxh6 {[%clk 0:00:59]}  Nc6 {[%clk 0:00:03]} 38. a3 {[%clk 0:00:53]}  Bd8 {[%clk 0:00:03]} 39. g4 {[%clk 0:00:48]}  Bc7 {[%clk 0:00:04]} 40. g5 {[%clk 0:00:48]}  Kg7 {[%clk 0:00:04]} 41. Nf5+ {[%clk 0:00:48]}  Kg6 {[%clk 0:00:05]} 42. N5h4+ {[%clk 0:00:47]}  Kh5 {[%clk 0:00:05]} 43. Kh3 {[%clk 0:00:42]}  Ne7 {[%clk 0:00:05]} 44. Nf5 {[%clk 0:00:40]}  Nc6 {[%clk 0:00:05]} 45. Ng7+ {[%clk 0:00:34]}  Kg6 {[%clk 0:00:05]} 46. Ne6 {[%clk 0:00:35]}  Bd6 {[%clk 0:00:04]} 47. Nh4+ {[%clk 0:00:35]}  Kh5 {[%clk 0:00:04]} 48. g6 {[%clk 0:00:35]}  Kh6 {[%clk 0:00:04]} 49. g7 {[%clk 0:00:35]}  Kh7 {[%clk 0:00:04]} 50. Nf5 {[%clk 0:00:29]}  Be7 {[%clk 0:00:04]} 51. Nh6 {[%clk 0:00:23]}  Kxh6 {[%clk 0:00:02]} 52. g8=Q {[%clk 0:00:23]}  Bf6 {[%clk 0:00:02]} 53. Qc8 {[%clk 0:00:22]}  Ne7 {[%clk 0:00:02]} 54. Qxc5 {[%clk 0:00:22]}  Ng6 {[%clk 0:00:03]} 55. a4 {[%clk 0:00:20]}  Be7 {[%clk 0:00:02]} 56. Qc6 {[%clk 0:00:19]}  Bf6 {[%clk 0:00:03]} 57. a5 {[%clk 0:00:19]}  Be7 {[%clk 0:00:03]} 58. a6 {[%clk 0:00:19]}  Bf6 {[%clk 0:00:03]} 59. a7 {[%clk 0:00:20]}  Be7 {[%clk 0:00:04]} 60. a8=Q {[%clk 0:00:20]}  Bf6 {[%clk 0:00:05]} 61. Nf8 {[%clk 0:00:18]}  Ne7 {[%clk 0:00:04]} 62. Qxf6+ {[%clk 0:00:17]}  Kh5 {[%clk 0:00:05]} 63. Qe8+ {[%clk 0:00:16]}  Ng6 {[%clk 0:00:04]} 64. Qexg6# {[%clk 0:00:17]} 1-0


[Site "https://www.chess.com"]

[Event "Titled Tuesday Blitz January 31 Early 2023"]
[White "Womacka, Mathias"]
[Black "Babikov, Ivan"]
[WhiteFideId "4611390"]
[BlackFideId "4161106"]
[WhiteElo "2396"]
[BlackElo "2239"]
[Result "1-0"]
[Round "06"]
[TimeControl "180+2"]
[Date "2023.01.31"]
[WhiteClock "0:00:03"]
[BlackClock "0:00:02"]

1. e4 {[%clk 0:02:59]}  c5 {[%clk 0:02:59]} 2. Nf3 {[%clk 0:02:59]}  Nf6 {[%clk 0:02:58]} 3. Nc3 {[%clk 0:02:56]}  d5 {[%clk 0:02:58]} 4. exd5 {[%clk 0:02:56]}  Nxd5 {[%clk 0:02:58]} 5. Bb5+ {[%clk 0:02:56]}  Bd7 {[%clk 0:02:59]} 6. Ne5 {[%clk 0:02:54]}  Nf6 {[%clk 0:02:59]} 7. Nxd7 {[%clk 0:02:53]}  Nbxd7 {[%clk 0:02:58]} 8. d4 {[%clk 0:02:54]}  e6 {[%clk 0:02:58]} 9. O-O {[%clk 0:02:50]}  Be7 {[%clk 0:02:58]} 10. dxc5 {[%clk 0:02:36]}  Bxc5 {[%clk 0:02:58]} 11. Bg5 {[%clk 0:02:30]}  O-O {[%clk 0:02:52]} 12. Qf3 {[%clk 0:02:19]}  Ne5 {[%clk 0:02:30]} 13. Qh3 {[%clk 0:02:14]}  h6 {[%clk 0:02:11]} 14. Rad1 {[%clk 0:02:00]}  Qe7 {[%clk 0:02:07]} 15. Bf4 {[%clk 0:01:37]}  Ng6 {[%clk 0:02:02]} 16. Bc1 {[%clk 0:01:35]}  Rfd8 {[%clk 0:01:58]} 17. Qf3 {[%clk 0:01:11]}  a6 {[%clk 0:01:49]} 18. Ba4 {[%clk 0:00:58]}  Ne5 {[%clk 0:01:46]} 19. Qe2 {[%clk 0:00:57]}  Neg4 {[%clk 0:01:41]} 20. h3 {[%clk 0:00:51]}  Nxf2 {[%clk 0:01:28]} 21. Rxf2 {[%clk 0:00:51]}  Bxf2+ {[%clk 0:01:20]} 22. Qxf2 {[%clk 0:00:52]}  Rxd1+ {[%clk 0:01:10]} 23. Nxd1 {[%clk 0:00:53]}  Rd8 {[%clk 0:01:09]} 24. Nc3 {[%clk 0:00:51]}  b5 {[%clk 0:00:58]} 25. Bb3 {[%clk 0:00:49]}  b4 {[%clk 0:00:57]} 26. Ne2 {[%clk 0:00:49]}  Rd1+ {[%clk 0:00:49]} 27. Kh2 {[%clk 0:00:48]}  Ne4 {[%clk 0:00:37]} 28. Qf4 {[%clk 0:00:42]}  Nf6 {[%clk 0:00:32]} 29. c3 {[%clk 0:00:35]}  e5 {[%clk 0:00:20]} 30. Qxb4 {[%clk 0:00:31]}  Qxb4 {[%clk 0:00:17]} 31. cxb4 {[%clk 0:00:31]}  Re1 {[%clk 0:00:17]} 32. Bc4 {[%clk 0:00:32]}  Ne4 {[%clk 0:00:10]} 33. Bxa6 {[%clk 0:00:28]}  Nf2 {[%clk 0:00:09]} 34. Be3 {[%clk 0:00:21]}  Nd1 {[%clk 0:00:06]} 35. Bc5 {[%clk 0:00:20]}  Nxb2 {[%clk 0:00:06]} 36. Nc3 {[%clk 0:00:18]}  Rc1 {[%clk 0:00:04]} 37. Nd5 {[%clk 0:00:16]}  Na4 {[%clk 0:00:04]} 38. Bd6 {[%clk 0:00:15]}  Rb1 {[%clk 0:00:04]} 39. Bxe5 {[%clk 0:00:14]}  f6 {[%clk 0:00:04]} 40. Bd6 {[%clk 0:00:13]}  Rb2 {[%clk 0:00:04]} 41. Bc4 {[%clk 0:00:11]}  Kh7 {[%clk 0:00:04]} 42. b5 {[%clk 0:00:10]}  Rb1 {[%clk 0:00:03]} 43. Bc7 {[%clk 0:00:09]}  Rc1 {[%clk 0:00:02]} 44. Ne3 {[%clk 0:00:09]}  Rc3 {[%clk 0:00:02]} 45. b6 {[%clk 0:00:08]}  Rxe3 {[%clk 0:00:01]} 46. b7 {[%clk 0:00:09]}  Re8 {[%clk 0:00:02]} 47. b8=Q {[%clk 0:00:08]}  Rxb8 {[%clk 0:00:02]} 48. Bxb8 {[%clk 0:00:09]}  Nb6 {[%clk 0:00:02]} 49. Bb3 {[%clk 0:00:08]}  Nd7 {[%clk 0:00:02]} 50. Bc7 {[%clk 0:00:08]}  Nc5 {[%clk 0:00:02]} 51. Bc4 {[%clk 0:00:08]}  Nb7 {[%clk 0:00:02]} 52. a4 {[%clk 0:00:07]}  Nc5 {[%clk 0:00:02]} 53. a5 {[%clk 0:00:07]}  Kg6 {[%clk 0:00:01]} 54. Bb6 {[%clk 0:00:06]}  Nd7 {[%clk 0:00:01]} 55. Bd4 {[%clk 0:00:05]}  Nb8 {[%clk 0:00:01]} 56. a6 {[%clk 0:00:05]}  Nxa6 {[%clk 0:00:01]} 57. Bxa6 {[%clk 0:00:06]}  Kf5 {[%clk 0:00:01]} 58. Bd3+ {[%clk 0:00:06]}  Ke6 {[%clk 0:00:01]} 59. Kg3 {[%clk 0:00:05]}  Kf7 {[%clk 0:00:01]} 60. Bc3 {[%clk 0:00:05]}  g6 {[%clk 0:00:02]} 61. Kf4 {[%clk 0:00:05]}  f5 {[%clk 0:00:01]} 62. Ke5 {[%clk 0:00:05]}  Kg7 {[%clk 0:00:01]} 63. Ke6+ {[%clk 0:00:05]}  Kh7 {[%clk 0:00:02]} 64. Kf6 {[%clk 0:00:05]}  f4 {[%clk 0:00:02]} 65. Be4 {[%clk 0:00:03]}  h5 {[%clk 0:00:02]} 66. Bxg6+ {[%clk 0:00:03]}  Kh6 {[%clk 0:00:02]} 67. Bd2 {[%clk 0:00:02]}  h4 {[%clk 0:00:02]} 68. Bxf4# {[%clk 0:00:03]} 1-0


[Site "https://www.chess.com"]

[Event "Titled Tuesday Blitz January 31 Early 2023"]
[White "Pourkashiyan, Atousa"]
[Black "Vestby-Ellingsen, Mads"]
[WhiteFideId "12502014"]
[BlackFideId "1520857"]
[WhiteElo "2282"]
[BlackElo "2387"]
[Result "0-1"]
[Round "06"]
[TimeControl "180+2"]
[Date "2023.01.31"]
[WhiteClock "0:00:01"]
[BlackClock "0:01:03"]

1. e4 {[%clk 0:02:32]}  b6 {[%clk 0:02:58]} 2. d4 {[%clk 0:02:30]}  Bb7 {[%clk 0:02:59]} 3. Nf3 {[%clk 0:02:29]}  Bxe4 {[%clk 0:02:58]} 4. Nc3 {[%clk 0:02:29]}  Bb7 {[%clk 0:02:57]} 5. d5 {[%clk 0:02:28]}  Nf6 {[%clk 0:02:56]} 6. Bc4 {[%clk 0:02:28]}  e6 {[%clk 0:02:54]} 7. O-O {[%clk 0:02:28]}  Be7 {[%clk 0:02:53]} 8. Bf4 {[%clk 0:02:26]}  O-O {[%clk 0:02:49]} 9. Re1 {[%clk 0:02:26]}  exd5 {[%clk 0:02:41]} 10. Nxd5 {[%clk 0:02:25]}  Nxd5 {[%clk 0:02:40]} 11. Bxd5 {[%clk 0:02:25]}  Bxd5 {[%clk 0:02:41]} 12. Qxd5 {[%clk 0:02:24]}  c6 {[%clk 0:02:40]} 13. Qe4 {[%clk 0:02:23]}  Bc5 {[%clk 0:02:29]} 14. Ng5 {[%clk 0:02:14]}  g6 {[%clk 0:02:30]} 15. Qf3 {[%clk 0:02:01]}  d5 {[%clk 0:02:25]} 16. Qh3 {[%clk 0:01:56]}  h5 {[%clk 0:02:21]} 17. Rad1 {[%clk 0:01:34]}  Qf6 {[%clk 0:02:12]} 18. Bc1 {[%clk 0:01:28]}  Bxf2+ {[%clk 0:02:05]} 19. Kh1 {[%clk 0:01:27]}  Bxe1 {[%clk 0:02:05]} 20. Rxe1 {[%clk 0:01:28]}  Na6 {[%clk 0:02:03]} 21. g4 {[%clk 0:01:06]}  Rae8 {[%clk 0:01:53]} 22. Rg1 {[%clk 0:01:05]}  h4 {[%clk 0:01:38]} 23. Qxh4 {[%clk 0:01:03]}  Qh8 {[%clk 0:01:39]} 24. Qf2 {[%clk 0:00:55]}  Nc5 {[%clk 0:01:35]} 25. Bd2 {[%clk 0:00:23]}  Ne4 {[%clk 0:01:18]} 26. Nxe4 {[%clk 0:00:23]}  Rxe4 {[%clk 0:01:18]} 27. Rf1 {[%clk 0:00:23]}  Qh3 {[%clk 0:01:12]} 28. Bc3 {[%clk 0:00:20]}  d4 {[%clk 0:01:06]} 29. Bxd4 {[%clk 0:00:20]}  Qxg4 {[%clk 0:01:05]} 30. Bc3 {[%clk 0:00:14]}  Re2 {[%clk 0:01:03]} 31. Qg3 {[%clk 0:00:02]}  Qxg3 {[%clk 0:01:03]} 32. hxg3 {[%clk 0:00:03]}  Rd8 {[%clk 0:01:03]} 33. Rf4 {[%clk 0:00:01]}  Rd1+ {[%clk 0:01:03]} 0-1


[Site "https://www.chess.com"]

[Event "Titled Tuesday Blitz January 31 Early 2023"]
[White "Golubev, Mikhail"]
[Black "Andreev, Konstantin"]
[WhiteFideId "14100983"]
[BlackFideId "24239305"]
[WhiteElo "2461"]
[BlackElo "2195"]
[Result "0-1"]
[Round "06"]
[TimeControl "180+2"]
[Date "2023.01.31"]
[WhiteClock "0:00:01"]
[BlackClock "0:00:01"]

1. e4 {[%clk 0:03:00]}  c5 {[%clk 0:02:50]} 2. Nf3 {[%clk 0:03:00]}  Nc6 {[%clk 0:02:50]} 3. Nc3 {[%clk 0:03:00]}  e6 {[%clk 0:02:49]} 4. d4 {[%clk 0:03:00]}  cxd4 {[%clk 0:02:50]} 5. Nxd4 {[%clk 0:03:00]}  Qc7 {[%clk 0:02:51]} 6. Be3 {[%clk 0:02:58]}  Nf6 {[%clk 0:02:50]} 7. Bd3 {[%clk 0:02:57]}  a6 {[%clk 0:02:51]} 8. O-O {[%clk 0:02:57]}  b5 {[%clk 0:02:51]} 9. Nxc6 {[%clk 0:02:54]}  Qxc6 {[%clk 0:02:51]} 10. a3 {[%clk 0:02:49]}  Bb7 {[%clk 0:02:50]} 11. Re1 {[%clk 0:02:49]}  b4 {[%clk 0:02:50]} 12. axb4 {[%clk 0:02:48]}  Bxb4 {[%clk 0:02:51]} 13. Bd2 {[%clk 0:02:39]}  O-O {[%clk 0:02:45]} 14. Qf3 {[%clk 0:02:34]}  Rfe8 {[%clk 0:02:35]} 15. Qh3 {[%clk 0:02:22]}  d6 {[%clk 0:02:28]} 16. Rad1 {[%clk 0:02:15]}  e5 {[%clk 0:02:13]} 17. Nd5 {[%clk 0:02:08]}  Bxd2 {[%clk 0:02:04]} 18. Nxf6+ {[%clk 0:02:06]}  gxf6 {[%clk 0:02:05]} 19. Rxd2 {[%clk 0:02:06]}  Kg7 {[%clk 0:01:48]} 20. Qh4 {[%clk 0:01:51]}  Re6 {[%clk 0:01:42]} 21. Re3 {[%clk 0:01:46]}  Kh8 {[%clk 0:01:33]} 22. Rh3 {[%clk 0:01:38]}  Kg8 {[%clk 0:01:30]} 23. Qh6 {[%clk 0:01:22]}  f5 {[%clk 0:01:30]} 24. Rg3+ {[%clk 0:00:54]}  Rg6 {[%clk 0:01:29]} 25. exf5 {[%clk 0:00:50]}  Rxg3 {[%clk 0:01:27]} 26. fxg3 {[%clk 0:00:50]}  Qc5+ {[%clk 0:01:04]} 27. Rf2 {[%clk 0:00:48]}  f6 {[%clk 0:01:04]} 28. Qxf6 {[%clk 0:00:47]}  e4 {[%clk 0:01:04]} 29. Qe7 {[%clk 0:00:25]}  Rf8 {[%clk 0:00:14]} 30. f6 {[%clk 0:00:19]}  Rf7 {[%clk 0:00:13]} 31. Qe8+ {[%clk 0:00:14]}  Rf8 {[%clk 0:00:14]} 32. f7+ {[%clk 0:00:15]}  Kg7 {[%clk 0:00:14]} 33. Qe7 {[%clk 0:00:14]}  Qd4 {[%clk 0:00:03]} 34. Qg5+ {[%clk 0:00:11]}  Kh8 {[%clk 0:00:04]} 35. Be2 {[%clk 0:00:08]}  e3 {[%clk 0:00:04]} 36. Qf6+ {[%clk 0:00:08]}  Qxf6 {[%clk 0:00:03]} 37. Rxf6 {[%clk 0:00:08]}  Kg7 {[%clk 0:00:04]} 38. Rxd6 {[%clk 0:00:08]}  Rxf7 {[%clk 0:00:04]} 39. Bf3 {[%clk 0:00:08]}  Bxf3 {[%clk 0:00:02]} 40. gxf3 {[%clk 0:00:08]}  Rxf3 {[%clk 0:00:03]} 41. Re6 {[%clk 0:00:08]}  Rf2 {[%clk 0:00:02]} 42. Rxe3 {[%clk 0:00:06]}  Rxc2 {[%clk 0:00:03]} 43. Rb3 {[%clk 0:00:05]}  Rc6 {[%clk 0:00:02]} 44. Rb7+ {[%clk 0:00:05]}  Kg6 {[%clk 0:00:02]} 45. Kg2 {[%clk 0:00:05]}  h6 {[%clk 0:00:02]} 46. h4 {[%clk 0:00:04]}  h5 {[%clk 0:00:02]} 47. Kf3 {[%clk 0:00:04]}  Kf5 {[%clk 0:00:02]} 48. Rb4 {[%clk 0:00:02]}  Kg6 {[%clk 0:00:01]} 49. Rd4 {[%clk 0:00:02]}  Rf6+ {[%clk 0:00:01]} 50. Rf4 {[%clk 0:00:01]}  Rb6 {[%clk 0:00:01]} 0-1


[Site "https://www.chess.com"]

[Event "Titled Tuesday Blitz January 31 Early 2023"]
[White "Ljukin, Sergei"]
[Black "Prieto Aranguren, Alain"]
[WhiteFideId "14102200"]
[BlackFideId "2268906"]
[WhiteElo "2362"]
[BlackElo "2258"]
[Result "1-0"]
[Round "06"]
[TimeControl "180+2"]
[Date "2023.01.31"]
[WhiteClock "0:00:26"]
[BlackClock "0:01:39"]

1. e4 {[%clk 0:02:42]}  c6 {[%clk 0:02:58]} 2. d4 {[%clk 0:02:42]}  d5 {[%clk 0:02:48]} 3. e5 {[%clk 0:02:42]}  Be6 {[%clk 0:02:47]} 4. Bd3 {[%clk 0:02:28]}  h5 {[%clk 0:02:46]} 5. f4 {[%clk 0:02:19]}  Qc8 {[%clk 0:02:46]} 6. Nd2 {[%clk 0:02:10]}  Bf5 {[%clk 0:02:46]} 7. Nb3 {[%clk 0:02:03]}  Nh6 {[%clk 0:02:40]} 8. Qxh5 {[%clk 0:01:57]}  Bxd3 {[%clk 0:02:35]} 9. cxd3 {[%clk 0:01:56]}  Qf5 {[%clk 0:02:34]} 10. Qxf5 {[%clk 0:01:55]}  Nxf5 {[%clk 0:02:34]} 11. Nf3 {[%clk 0:01:54]}  e6 {[%clk 0:02:30]} 12. g4 {[%clk 0:01:40]}  Nh4 {[%clk 0:02:29]} 13. Nxh4 {[%clk 0:01:30]}  Rxh4 {[%clk 0:02:28]} 14. h3 {[%clk 0:01:30]}  Na6 {[%clk 0:02:27]} 15. Be3 {[%clk 0:01:25]}  Be7 {[%clk 0:02:23]} 16. Bf2 {[%clk 0:01:22]}  Rh7 {[%clk 0:02:22]} 17. a3 {[%clk 0:01:17]}  Kd7 {[%clk 0:02:20]} 18. Kf1 {[%clk 0:01:17]}  Rah8 {[%clk 0:02:19]} 19. Kg2 {[%clk 0:01:17]}  Bh4 {[%clk 0:02:18]} 20. Bxh4 {[%clk 0:01:13]}  Rxh4 {[%clk 0:02:17]} 21. Nd2 {[%clk 0:01:13]}  Nc7 {[%clk 0:02:14]} 22. Nf3 {[%clk 0:01:13]}  R4h7 {[%clk 0:02:14]} 23. Ng5 {[%clk 0:01:08]}  Rh4 {[%clk 0:02:11]} 24. Nxf7 {[%clk 0:01:04]}  Rf8 {[%clk 0:02:09]} 25. Ng5 {[%clk 0:01:04]}  Rxf4 {[%clk 0:02:09]} 26. Kg3 {[%clk 0:01:04]}  Rxd4 {[%clk 0:02:04]} 27. Kxh4 {[%clk 0:01:01]}  Rxd3 {[%clk 0:02:05]} 28. Raf1 {[%clk 0:01:00]}  c5 {[%clk 0:02:01]} 29. Rf7+ {[%clk 0:00:59]}  Kc6 {[%clk 0:02:01]} 30. Re7 {[%clk 0:00:43]}  d4 {[%clk 0:01:57]} 31. Nxe6 {[%clk 0:00:42]}  Nd5 {[%clk 0:01:55]} 32. Rxg7 {[%clk 0:00:38]}  c4 {[%clk 0:01:52]} 33. Kg5 {[%clk 0:00:29]}  c3 {[%clk 0:01:51]} 34. bxc3 {[%clk 0:00:29]}  dxc3 {[%clk 0:01:51]} 35. Nf4 {[%clk 0:00:29]}  Nxf4 {[%clk 0:01:40]} 36. Kxf4 {[%clk 0:00:29]}  c2 {[%clk 0:01:40]} 37. Rc1 {[%clk 0:00:29]}  Rd2 {[%clk 0:01:40]} 38. e6 {[%clk 0:00:26]}  Kd6 {[%clk 0:01:39]} 39. Rd7+ {[%clk 0:00:26]} 1-0


[Site "https://www.chess.com"]

[Event "Titled Tuesday Blitz January 31 Early 2023"]
[White "rikchessmx"]
[Black "Kochetov, Andrey"]
[BlackFideId "24130532"]
[WhiteElo "2329"]
[BlackElo "2165"]
[Result "0-1"]
[Round "06"]
[TimeControl "180+2"]
[Date "2023.01.31"]
[WhiteClock "0:01:31"]
[BlackClock "0:00:14"]

1. e4 {[%clk 0:03:00]}  d5 {[%clk 0:02:55]} 2. exd5 {[%clk 0:03:00]}  Qxd5 {[%clk 0:02:56]} 3. Nc3 {[%clk 0:03:00]}  Qa5 {[%clk 0:02:56]} 4. Bc4 {[%clk 0:03:00]}  c6 {[%clk 0:02:56]} 5. d3 {[%clk 0:03:01]}  Nf6 {[%clk 0:02:57]} 6. Qe2 {[%clk 0:02:59]}  Bf5 {[%clk 0:02:57]} 7. Bd2 {[%clk 0:02:58]}  Qc7 {[%clk 0:02:56]} 8. f4 {[%clk 0:02:58]}  Nbd7 {[%clk 0:02:56]} 9. h3 {[%clk 0:02:58]}  h5 {[%clk 0:02:50]} 10. Nf3 {[%clk 0:02:57]}  e6 {[%clk 0:02:51]} 11. Nh4 {[%clk 0:02:54]}  Bh7 {[%clk 0:02:46]} 12. O-O-O {[%clk 0:02:53]}  O-O-O {[%clk 0:02:45]} 13. g4 {[%clk 0:02:53]}  Bd6 {[%clk 0:02:35]} 14. Rdf1 {[%clk 0:02:49]}  Nb6 {[%clk 0:02:23]} 15. Bb3 {[%clk 0:02:47]}  Nbd5 {[%clk 0:02:23]} 16. Ng2 {[%clk 0:02:42]}  Bb4 {[%clk 0:01:57]} 17. Ne4 {[%clk 0:02:37]}  Bxe4 {[%clk 0:01:35]} 18. dxe4 {[%clk 0:02:35]}  Bxd2+ {[%clk 0:01:29]} 19. Qxd2 {[%clk 0:02:34]}  Nxe4 {[%clk 0:01:27]} 20. Qe2 {[%clk 0:02:27]}  Ng3 {[%clk 0:01:23]} 21. Qf3 {[%clk 0:02:26]}  Nxh1 {[%clk 0:01:23]} 22. Rxh1 {[%clk 0:02:26]}  hxg4 {[%clk 0:01:22]} 23. Qxg4 {[%clk 0:02:26]}  Rh6 {[%clk 0:01:15]} 24. a3 {[%clk 0:02:23]}  Rg6 {[%clk 0:00:57]} 25. Qf3 {[%clk 0:02:23]}  Qa5 {[%clk 0:00:46]} 26. f5 {[%clk 0:02:19]}  Rf6 {[%clk 0:00:46]} 27. Qg3 {[%clk 0:02:14]}  Rxf5 {[%clk 0:00:43]} 28. Qxg7 {[%clk 0:02:13]}  Rf2 {[%clk 0:00:43]} 29. Qg5 {[%clk 0:02:08]}  f6 {[%clk 0:00:41]} 30. Qg3 {[%clk 0:02:07]}  Qd2+ {[%clk 0:00:39]} 31. Kb1 {[%clk 0:02:08]}  Rxg2 {[%clk 0:00:38]} 32. Qf3 {[%clk 0:02:03]}  Qf2 {[%clk 0:00:36]} 33. Qe4 {[%clk 0:01:59]}  Rg1+ {[%clk 0:00:36]} 34. Rxg1 {[%clk 0:01:58]}  Qxg1+ {[%clk 0:00:35]} 35. Ka2 {[%clk 0:01:58]}  Qg8 {[%clk 0:00:28]} 36. c4 {[%clk 0:01:54]}  Nc7 {[%clk 0:00:28]} 37. Qe3 {[%clk 0:01:53]}  Kb8 {[%clk 0:00:27]} 38. Qf4 {[%clk 0:01:53]}  f5 {[%clk 0:00:25]} 39. Qh4 {[%clk 0:01:49]}  Qh8 {[%clk 0:00:25]} 40. Qg3 {[%clk 0:01:48]}  Rd2 {[%clk 0:00:23]} 41. Bc2 {[%clk 0:01:36]}  Rxc2 {[%clk 0:00:21]} 42. Qb3 {[%clk 0:01:37]}  Rh2 {[%clk 0:00:18]} 43. c5 {[%clk 0:01:33]}  Qxh3 {[%clk 0:00:12]} 44. Qb4 {[%clk 0:01:32]}  Qh8 {[%clk 0:00:11]} 45. a4 {[%clk 0:01:31]}  Nd5 {[%clk 0:00:09]} 46. Qb3 {[%clk 0:01:29]}  Rxb2+ {[%clk 0:00:06]} 47. Qxb2 {[%clk 0:01:29]}  Qxb2+ {[%clk 0:00:07]} 48. Kxb2 {[%clk 0:01:29]}  Nc7 {[%clk 0:00:07]} 49. Kb3 {[%clk 0:01:30]}  Na6 {[%clk 0:00:07]} 50. Kc4 {[%clk 0:01:31]}  Kc7 {[%clk 0:00:08]} 51. Kd4 {[%clk 0:01:31]}  Kd7 {[%clk 0:00:09]} 52. Kc4 {[%clk 0:01:30]}  e5 {[%clk 0:00:09]} 53. a5 {[%clk 0:01:29]}  Ke6 {[%clk 0:00:09]} 54. Kd3 {[%clk 0:01:29]}  Kd5 {[%clk 0:00:10]} 55. Kc3 {[%clk 0:01:29]}  Nxc5 {[%clk 0:00:11]} 56. Kb4 {[%clk 0:01:29]}  Na6+ {[%clk 0:00:12]} 57. Ka4 {[%clk 0:01:29]}  Kc5 {[%clk 0:00:12]} 58. Ka3 {[%clk 0:01:29]}  Kb5 {[%clk 0:00:13]} 59. Kb3 {[%clk 0:01:30]}  Kxa5 {[%clk 0:00:13]} 60. Kc3 {[%clk 0:01:31]}  Nc5 {[%clk 0:00:13]} 61. Kc4 {[%clk 0:01:31]}  Nd7 {[%clk 0:00:14]} 0-1


[Site "https://www.chess.com"]